{"text_format":"1","workbook":"xlsx","n_sheets":3,"sheets":["List1","FORMULAR","Data"],"not_rendered":{"charts":0,"images":4,"macros":1,"external_links":0,"defined_names":2,"comments":1,"pivot_tables":0},"unopened":[],"bounds":{"document_bytes":16777216,"sheet_cells":100000,"rows_first":2000,"rows_last":500,"rows_between":2000,"halvings":0,"cell_chars":16384,"cell_head_chars":4096},"cells_cut":0,"cells_raw":0,"read":"whole","date_system":"1900"}

{"sheet":"List1","index":0,"n_rows":17,"n_cols":2,"rows_kept":17,"cut":false,"hidden":false,"merged":[[0,1,0,13],[4,1,4,13],[7,1,7,13],[15,1,15,13],[16,1,16,13],[11,1,11,13],[12,1,12,13],[3,1,3,13],[8,1,8,13]]}
[null,"Před použitím / vor Nutzung / before using / Перед использованием"]
[]
["·        ","ČESKY"]
[null,"Musíte se ujistit, že \"stupeň zabezpečení\" maker v Excel, je nastavený na \"střední\". Bez této konfigurace makra nefungují."]
[null,"Na listě zvolte jazyk."]
[]
["·         ","ENGLISH"]
[null,"You must make sure, that the “security level” of the macros in Excel, is set to “medium”. Without this configuration, it’s not possible to enable the macros. "]
[null,"On paper choose language."]
[]
["·         ","DEUTSCH"]
[null,"Es muss in Excel sichergestellt sein, dass die “Sicherheitsstufe” der Makros als “Mittel” definiert ist. Ohne diese Konfiguration, funktionieren die Makros nicht."]
[null,"Für  Blatt die Sprache auswählen."]
[]
["·         ","ПО-РУССКИ"]
[null,"Вы должы удостовериться что\"ступень обеспечении\" maker в Excel, наставлен на \"средний\". Без данной конфигурации makra бездействует."]
[null,"На странице укажите язык"]

{"sheet":"FORMULAR","index":1,"n_rows":48,"n_cols":12,"rows_kept":48,"cut":false,"hidden":false,"merged":[[33,1,33,11],[38,1,38,8],[43,1,43,11],[24,11,31,11],[24,10,31,10],[24,9,31,9],[24,1,30,4],[24,5,30,8],[44,1,45,11],[34,1,35,11],[39,1,40,8],[39,9,41,9],[39,10,41,10],[39,11,41,11],[23,1,23,4],[23,5,23,8],[8,1,8,11],[17,1,20,8],[17,10,21,11],[17,9,21,9],[16,10,16,11],[16,1,16,8],[9,7,9,11],[10,1,13,11],[0,1,0,11],[7,1,7,11],[1,1,1,8],[1,10,1,11],[2,10,2,11],[6,7,6,9],[4,7,4,9],[5,7,5,9],[2,3,2,9],[4,4,4,5],[3,4,3,5],[3,7,3,9]]}
[]
[null,{"$f":"Data!B3","v":"NÁPRAVNÁ OPATŘENÍ (8D-report)"},null,null,null,null,null,null,null,{"$f":"Data!B4","v":"Číslo:"}]
[null,{"$f":"Data!B5","v":"1). TÝM:"},null,{"$f":"Data!B10","v":"ÚČEL VYSTAVENÍ"},null,null,null,null,null,null,{"$f":"Data!B19","v":"Sledování PDCA"}]
[null,{"$f":"Data!B6","v":"Vedoucí:"},null,{"$f":"Data!B11","v":"Zákazník/Závod:"},null,null,{"$f":"Data!B15","v":"Označení dílu:"}]
[null,{"$f":"Data!B7","v":"Účastník:"},null,null,{"$f":"Data!B12","v":"Reklamace zákazníka"},null,{"$f":"Data!B16","v":"Číslo reklamace"}]
[null,{"$f":"Data!B8","v":"Účastník:"},null,null,{"$f":"Data!B13","v":"Interní chyba"},null,{"$f":"Data!B17","v":"Opakovaná chyba"}]
[null,{"$f":"Data!B9","v":"Účastník:"},null,null,{"$f":"Data!B14","v":"Dodavatelská chyba"},null,{"$f":"Data!B18","v":"Ostatní (podrobně):"}]
[null,{"$f":"Data!B20","v":"Vysvětlivky: P = Plánuj,  D = Dělej,  C = Proveď kontrolu,  A = Akc"}]
[null,{"$f":"Data!B21","v":"2) Popis problému  (kdo, co, kde, kdy, jak, kolik, proč)"}]
[null,{"$f":"Data!B22","v":"číslo dílce:"},null,{"$f":"Data!B23","v":"množství:"},null,null,{"$f":"Data!B24","v":"datum výroby:"}]
[]
[]
[]
[]
[null,{"$f":"Data!B25","v":"Datum:"},null,null,null,{"$f":"Data!B26","v":"Podpis:"}]
[]
[null,{"$f":"Data!B27","v":"3) Krátkodobá opatření"},null,null,null,null,null,null,null,{"$f":"Data!B28","v":"Zodpovědnost"},{"$f":"Data!B29","v":"Datum zahájení krátkodobého opatření"}]
[]
[]
[]
[]
[null,{"$f":"Data!B30","v":"Datum:"},null,null,null,{"$f":"Data!B31","v":"Podpis:"}]
[]
[null,{"$f":"Data!B32","v":"4) Analýza příčin"},null,null,null,{"$f":"Data!B35","v":"5) Opatření k odstranění"},null,null,null,{"$f":"Data!B38","v":"Zodpovědnost"},{"$f":"Data!B39","v":"Termín"},{"$f":"Data!B40","v":"Uzavřeno"}]
[]
[]
[]
[]
[]
[]
[]
[null,{"$f":"Data!B33","v":"Datum:"},null,{"$f":"Data!B34","v":"Podpis:"},null,{"$f":"Data!B36","v":"Datum:"},null,{"$f":"Data!B37","v":"Podpis:"}]
[]
[null,{"$f":"Data!B41","v":"6) Účinnost zavedených opatření"}]
[]
[]
[null,{"$f":"Data!B42","v":"Datum:"},null,null,null,{"$f":"Data!B43","v":"Podpis:"}]
[]
[null,{"$f":"Data!B44","v":"7) Preventivní opatření"},null,null,null,null,null,null,null,{"$f":"Data!B47","v":"Zodpovědnost"},{"$f":"Data!B48","v":"Termín"},{"$f":"Data!B49","v":"Uzavřeno"}]
[]
[]
[null,{"$f":"Data!B45","v":"Datum:"},null,null,null,{"$f":"Data!B46","v":"Podpis:"}]
[]
[null,{"$f":"Data!B50","v":"8) Vyhodnocení"}]
[]
[]
[null,{"$f":"Data!B51","v":"Datum:"},null,null,null,{"$f":"Data!B52","v":"Podpis:"}]
[null,"ŘK-11-4-039-12-0",null,null,null,{"$f":"Data!I49","v":0}]

{"sheet":"Data","index":2,"n_rows":52,"n_cols":5,"rows_kept":52,"cut":false,"hidden":true,"merged":[]}
[]
[null,"ČESKY","Englisch","Deutsch","ПО-РУССКИ"]
[null,"NÁPRAVNÁ OPATŘENÍ (8D-report)","CORRECTIVE  ACTION (8D-report)","ABHILFEMAßNAHME (8D-report)","Коррекционные меры (8D-Отчет)"]
[null,"Číslo:","No.","Nr.:","Номер:"]
[null,"1). TÝM:","1). TEAM:","1). TEAM:","1). ГРУППА"]
[null,"Vedoucí:","Chief","Leiter:","Руководитель:"]
[null,"Účastník:","Participant:","Teilnehmer:","Участник:"]
[null,"Účastník:","Participant:","Teilnehmer:","Участник:"]
[null,"Účastník:","Participant:","Teilnehmer:","Участник:"]
[null,"ÚČEL VYSTAVENÍ","PURPOSE  OF  ISSUANCE","AUSSTELUNGSZWECK","ЦЕЛЬ ВЫСТАВЛЕНИЯ"]
[null,"Zákazník/Závod:","Customer/Plant:","Kunde / Werk:","Заказчик/Завод:"]
[null,"Reklamace zákazníka","Claim of customer","Kunde Reklamation","Рекламация заказчика"]
[null,"Interní chyba","Internal mistake","Interner Fehler","Внутриведомственная ошибка"]
[null,"Dodavatelská chyba","Supplier mistake","Lieferant Fehler","Ошибка поставщика"]
[null,"Označení dílu:","Marking of the part:","Bezeichnung :","Обозначение детали:"]
[null,"Číslo reklamace","Number of the claim:","Reklamation Nr. :","Номер рекламации"]
[null,"Opakovaná chyba","Repeated mistake","Wiederholter Fehler","Повторная ошибка"]
[null,"Ostatní (podrobně):","Others (in detail):","Sonstige (genau):","Остальное (подробно)"]
[null,"Sledování PDCA","Following of PDCA","Beobachtung PDCA","Следование цикла PDCA"]
[null,"Vysvětlivky: P = Plánuj,  D = Dělej,  C = Proveď kontrolu,  A = Akc","Comments : P = Planning, D = Perform, C = inspection, A = Action","Kommentar: P = Plan,  D = Mach,  C = Prüf,  A = Aktion","Пояснение: P = Планируй, D = Делай,  C = Произведи контроль,  A = Действуй"]
[null,"2) Popis problému  (kdo, co, kde, kdy, jak, kolik, proč)","2) Description of the problem (who, what, where, when, how, how many, why)","2) Beschreibung des Problems (wer,was,wo,wann,wie,wieviel,warum)","2) Описание проблемы (кто, что, где, когда, как, сколько, почему)"]
[null,"číslo dílce:","Part No:","Teile Nr.:","Номер детали:"]
[null,"množství:","Quantity:","Menge:","Kоличество:"]
[null,"datum výroby:","Date of production:","Fertigungsdatum:","Дата производства:"]
[null,"Datum:","Date:","Datum:","Дата::"]
[null,"Podpis:","Signature:","Unterschrift:","Подпись:"]
[null,"3) Krátkodobá opatření","3) Short-term actions","3) Kurzfristige Maßnahmen","3) Кратковременные меры"]
[null,"Zodpovědnost","Responsibility","Verantwortlich","Ответственость"]
[null,"Datum zahájení krátkodobého opatření","Date of start of short-term action","Beginndatum der kurzfristigen Maßnahmen","Дата начала кратковременных мер"]
[null,"Datum:","Date:","Datum:","Дата::"]
[null,"Podpis:","Signature:","Unterschrift:","Подпись:"]
[null,"4) Analýza příčin","4) Analyse of reasons","4) Fehlerursache Analyse","4) Анализ причин"]
[null,"Datum:","Date:","Datum:","Дата::"]
[null,"Podpis:","Signature:","Unterschrift:","Подпись:"]
[null,"5) Opatření k odstranění","5) Actions for elimination","5) Festgelegte Maßnahme","5) Принятие мер к отстранению"]
[null,"Datum:","Date:","Datum:","Дата::"]
[null,"Podpis:","Signature:","Unterschrift:","Подпись:"]
[null,"Zodpovědnost","Responsibility","Verantwortlich","Ответственость"]
[null,"Termín","Term","Termin","Срок"]
[null,"Uzavřeno","Closed","Abgeschl.","Завершено"]
[null,"6) Účinnost zavedených opatření","6) Effectiveness of introduced actions","6) Effektivität der eingeführten Maßnahmen   ","6) Эфективность принятых мер"]
[null,"Datum:","Date:","Datum:","Дата::"]
[null,"Podpis:","Signature:","Unterschrift:","Подпись:"]
[null,"7) Preventivní opatření","7) Preventive actions","7) Preventivmaßnahme","Предупредительные меры"]
[null,"Datum:","Date:","Datum:","Дата::"]
[null,"Podpis:","Signature:","Unterschrift:","Подпись:"]
[null,"Zodpovědnost","Responsibility","Verantwortlich","Ответственость"]
[null,"Termín","Term","Termin","Срок"]
[null,"Uzavřeno","Closed","Abgeschl.","Завершено"]
[null,"8) Vyhodnocení","8) Evaluation","8) Auswertung","9) Оценка"]
[null,"Datum:","Date:","Datum:","Дата::"]
[null,"Podpis:","Signature:","Unterschrift:","Подпись:"]